[Event "51st La Roda Open 2025"]
[Site "La Roda"]
[Date "2025.04.19"]
[Round "7.3"]
[White "Albornoz Cabrera, Carlos Daniel"]
[Black "Sierra Vallina, Lionel"]
[Result "1/2-1/2"]
[Annotator "TA"]
[ECO "B60"]
[WhiteElo "2561"]
[BlackElo "2342"]
[PlyCount "49"]
[EventDate "2025.04.15"]
[EventType "swiss"]
[EventCountry "ESP"]
[SourceTitle "playchess.com"]
[Source "ChessBase"]
[SourceQuality "1"]
[TimeControl "5400+30"]

{[%evp 11,49,29,54,33,48,7,35,32,29,30,35,44,34,23,35,33,39,0,0,0,0,0,0,0,0,-26,0,0,0,0,0,0,0,0,0,0,0,-8,0,-47]} 1. e4 {[%emt 0:00:02]} c5 {[%emt 0:00:08]} 2. Nf3 {[%emt 0:00:03]} d6 {[%emt 0:00:07]} 3. d4 {[%emt 0:00:05]} cxd4 {[%emt 0:00:05]} 4. Nxd4 {[%emt 0:00:03]} Nf6 {[%emt 0:00:08]} 5. Nc3 {[%emt 0:00:03]} Nc6 {[%emt 0:00:07]} 6. Bg5 {[%emt 0:00:04]} Bd7 {[%emt 0:00:14]} 7. Nxc6 {[%emt 0:01:22] B60: Sicilian: Richter-Rauzer: Unusual Black 6th moves and 6...Bd7 without 7 Qd2.} Bxc6 {[%emt 0:04:10]} 8. Bb5 {[%emt 0:00:26]} Bxb5 {[%emt 0:03:38]} 9. Bxf6 $1 {[%emt 0:00:05] White is slightly better.} gxf6 {[%emt 0:00:05]} 10. Nxb5 {[%emt 0:00:05]} Qa5+ {[%emt 0:02:01]} 11. Nc3 {[%emt 0:00:01]} e6 {[%emt 0:22:41]} 12. O-O {[%emt 0:04:22]} Be7 {[%emt 0:01:04]} 13. Qd3 {[%emt 0:07:29]} O-O-O {[%emt 0:03:31]} 14. b4 $146 {[%emt 0:20:48]} (14. a4 Rhg8 15. Qb5 Qc7 16. Qh5 Rg7 17. Rad1 Qc5 18. Qxc5+ dxc5 19. Rxd8+ Kxd8 20. Rd1+ {1-0 Karsten,J (2286)-Gu,X (2344) Dubai Police op-A 2024 (4)}) 14... Qxb4 {[%emt 0:10:26]} 15. Rab1 {[%emt 0:00:17]} Qc5 {[%emt 0:02:16]} 16. Rb5 {[%emt 0:00:42]} Qc6 {[%emt 0:01:10]} 17. Rfb1 {[%emt 0:00:47] [#]} Rd7 {[%emt 0:04:20]} 18. Ne2 {[%emt 0:08:15] and Nd4 would now be decisive} (18. Ra5 $5 Kb8 19. Ra6 $11) 18... d5 {[%emt 0:09:20]} 19. exd5 {[%emt 0:19:26] The position is equal.} Rxd5 {[%emt 0:00:16]} 20. Rxd5 {[%emt 0:00:28]} Qxd5 {[%emt 0:01:23]} 21. Qxd5 {[%emt 0:00:06]} exd5 $11 {[%emt 0:00:05] KRB-KRN. Black is a pawn up.} 22. Rb3 {[%emt 0:02:26]} Re8 {[%emt 0:15:53]} 23. Kf1 {[%emt 0:02:32]} Bf8 {[%emt 0:02:12]} 24. Rd3 {[%emt 0:02:40]} Re4 {[%emt 0:01:48]} 25. Nd4 {[%emt 0:10:55] Weighted Error Value: White=0.11 (very precise) /Black=0.06 (flawless)   Mistake:       	White=1     	---        Inaccurate:     	White=3     	Black=2      OK:         	White=4     	Black=7      Best:        	White=2     	Black=1      Strong:       	White=1     	---} (25. Nc3 $11 {should be considered.} Rc4 26. Nxd5) 1/2-1/2

[Event "51st La Roda Open 2025"]
[Site "La Roda"]
[Date "2025.04.19"]
[Round "7.4"]
[White "Suleymenov, Alisher"]
[Black "Goncalves, Samuel Jesus P"]
[Result "1-0"]
[Annotator "RC"]
[ECO "D78"]
[WhiteElo "2478"]
[BlackElo "2248"]
[PlyCount "135"]
[EventDate "2025.04.15"]
[EventType "swiss"]
[EventCountry "ESP"]
[SourceTitle "playchess.com"]
[Source "ChessBase"]
[SourceQuality "1"]
[TimeControl "5400+30"]

1. d4 {[%emt 0:00:02]} Nf6 {[%emt 0:00:06]} 2. c4 {[%emt 0:00:04]} g6 {[%emt 0:00:06]} 3. g3 {[%emt 0:00:06]} c6 {[%emt 0:01:14]} 4. Bg2 {[%emt 0:00:08]} d5 {[%emt 0:00:04]} 5. Qa4 {[%emt 0:00:27]} Nbd7 {[%emt 0:05:35]} 6. cxd5 {[%emt 0:00:18]} Nb6 {[%emt 0:00:35]} 7. Qb3 {[%emt 0:00:51]} cxd5 {[%emt 0:00:47]} 8. Nc3 {[%emt 0:04:02]} Bg7 {[%emt 0:03:15]} 9. Nf3 {[%emt 0:01:31]} O-O {[%emt 0:00:39]} 10. O-O {[%emt 0:01:42]} Ne4 {[%emt 0:01:37]} 11. a4 {[%emt 0:11:18]} e6 {[%emt 0:44:45]} 12. Ne5 {[%emt 0:11:28]} Nd6 {[%emt 0:04:15]} 13. Rd1 {[%emt 0:00:38]} Nbc4 {[%emt 0:05:08]} 14. e4 {[%emt 0:08:06]} Nxe5 {[%emt 0:08:13]} 15. dxe5 {[%emt 0:00:06]} Bxe5 {[%emt 0:00:27]} 16. exd5 {[%emt 0:00:06]} Qb6 {[%emt 0:02:39]} 17. Qc2 {[%emt 0:14:33]} Nf5 {[%emt 0:00:43]} 18. Qe2 {[%emt 0:00:41]} Bg7 {[%emt 0:00:47]} 19. a5 {[%emt 0:00:30]} Qc5 {[%emt 0:01:07]} 20. Qb5 {[%emt 0:13:13]} Qxb5 {[%emt 0:01:33]} 21. Nxb5 {[%emt 0:00:04]} exd5 {[%emt 0:06:02]} 22. Nc7 {[%emt 0:10:39]} Rb8 {[%emt 0:00:11]} 23. Rxd5 {[%emt 0:01:25]} Nd4 {[%emt 0:01:59]} 24. Be3 {[%emt 0:04:48]} Ne6 {[%emt 0:03:43]} 25. Bxa7 {[%emt 0:01:50]} Nxc7 {[%emt 0:00:01]} 26. Bxb8 {[%emt 0:00:08]} Nxd5 {[%emt 0:00:07]} 27. Bxd5 {[%emt 0:00:03]} Be6 {[%emt 0:00:11]} 28. Bxb7 {[%emt 0:08:16]} Rxb8 {[%emt 0:02:40]} 29. a6 {[%emt 0:00:01]} Bd4 {[%emt 0:00:11]} 30. a7 {[%emt 0:00:22]} Bxa7 {[%emt 0:00:01]} 31. Rxa7 {[%emt 0:00:03]} Kg7 {[%emt 0:00:08]} 32. b4 {[%emt 0:01:13]} Kf6 {[%emt 0:01:09]} 33. b5 {[%emt 0:04:19]} Ke5 {[%emt 0:00:23]} 34. Bc6 {[%emt 0:00:28]} Kd6 {[%emt 0:00:47]} 35. f4 {[%emt 0:01:19]} Kc5 {[%emt 0:00:52]} 36. Kf2 {[%emt 0:00:48]} Rd8 {[%emt 0:00:49]} 37. Ke3 {[%emt 0:00:05]} Rd1 {[%emt 0:00:32]} 38. Be8 {[%emt 0:00:52]} Kb6 {[%emt 0:01:01]} 39. Ra6+ {[%emt 0:01:08]} Kc5 {[%emt 0:00:54]} 40. Rc6+ {[%emt 0:00:45]} Kd5 {[%emt 0:00:06]} 41. Rc7 {[%emt 0:00:23]} Re1+ {[%emt 0:02:31]} 42. Kf2 {[%emt 0:00:58]} Rb1 {[%emt 0:00:55]} 43. Bxf7 {[%emt 0:00:06]} Rb2+ {[%emt 0:00:16]} 44. Kg1 {[%emt 0:00:40]} Rb1+ {[%emt 0:00:04]} 45. Kg2 {[%emt 0:00:08]} Rb2+ {[%emt 0:00:04]} 46. Kf3 {[%emt 0:00:45]} Rb3+ {[%emt 0:00:56]} 47. Ke2 {[%emt 0:00:04]} Rb2+ {[%emt 0:00:23]} 48. Ke3 {[%emt 0:00:57]} Bxf7 {[%emt 0:00:56]} 49. Rxf7 {[%emt 0:00:01]} Rxh2 {[%emt 0:00:07]} 50. b6 {[%emt 0:00:19]} Rb2 {[%emt 0:00:08]} 51. b7 {[%emt 0:00:07]} Rb3+ {[%emt 0:00:17]} 52. Kd2 {[%emt 0:02:07]} h5 {[%emt 0:00:47]} 53. Kc2 {[%emt 0:00:01]} Rb6 {[%emt 0:00:22]} 54. Kc3 {[%emt 0:00:55]} Ke6 {[%emt 0:00:30]} 55. Rg7 {[%emt 0:00:26]} Kf6 {[%emt 0:00:07]} 56. Rc7 {[%emt 0:00:09]} Kf5 {[%emt 0:00:15]} 57. Kc4 {[%emt 0:00:24]} Kg4 {[%emt 0:01:07]} 58. Rg7 {[%emt 0:00:08]} Kf3 {[%emt 0:00:45]} 59. Kc5 {[%emt 0:00:50]} Rb1 {[%emt 0:00:01]} 60. Kc6 {[%emt 0:00:32]} Kxg3 {[%emt 0:00:28]} 61. f5 {[%emt 0:00:06]} Rc1+ {[%emt 0:02:31]} 62. Kd7 {[%emt 0:00:08]} Rb1 {[%emt 0:00:47]} 63. Kc8 {[%emt 0:00:10]} Rc1+ {[%emt 0:00:37]} 64. Rc7 {[%emt 0:00:16]} Re1 {[%emt 0:00:11]} 65. f6 {[%emt 0:01:01]} Re8+ {[%emt 0:00:39]} 66. Kd7 {[%emt 0:00:03]} Rb8 {[%emt 0:00:04]} 67. Kc6 {[%emt 0:00:16]} Rf8 {[%emt 0:00:21]} 68. f7 {[%emt 0:00:05]} 1-0

[Event "51st La Roda Open 2025"]
[Site "La Roda"]
[Date "2025.04.19"]
[Round "7.5"]
[White "Kanov, Nikola"]
[Black "Rumbos Garcia, Alejandro Daniel"]
[Result "1-0"]
[Annotator "RC"]
[ECO "B33"]
[WhiteElo "2413"]
[BlackElo "2178"]
[PlyCount "75"]
[EventDate "2025.04.15"]
[EventType "swiss"]
[EventCountry "ESP"]
[SourceTitle "playchess.com"]
[Source "ChessBase"]
[SourceQuality "1"]
[TimeControl "5400+30"]

1. e4 {[%emt 0:00:03]} c5 {[%emt 0:00:09]} 2. Nf3 {[%emt 0:00:09]} Nc6 {[%emt 0:00:07]} 3. d4 {[%emt 0:00:14]} cxd4 {[%emt 0:00:08]} 4. Nxd4 {[%emt 0:00:10]} Nf6 {[%emt 0:00:06]} 5. Nc3 {[%emt 0:00:18]} e5 {[%emt 0:00:07]} 6. Ndb5 {[%emt 0:00:14]} d6 {[%emt 0:00:09]} 7. Bg5 {[%emt 0:00:19]} a6 {[%emt 0:00:07]} 8. Na3 {[%emt 0:00:11]} b5 {[%emt 0:00:10]} 9. Nd5 {[%emt 0:00:14]} Be7 {[%emt 0:00:09]} 10. Bxf6 {[%emt 0:00:08]} Bxf6 {[%emt 0:00:06]} 11. c3 {[%emt 0:00:13]} Bg5 {[%emt 0:00:13]} 12. Nc2 {[%emt 0:00:18]} Rb8 {[%emt 0:00:07]} 13. a4 {[%emt 0:00:49]} bxa4 {[%emt 0:00:08]} 14. Ncb4 {[%emt 0:00:21]} Nxb4 {[%emt 0:00:08]} 15. cxb4 {[%emt 0:00:36]} Bd7 {[%emt 0:02:22]} 16. Bxa6 {[%emt 0:00:22]} O-O {[%emt 0:00:11]} 17. O-O {[%emt 0:00:27]} Bc6 {[%emt 0:03:00]} 18. Ra2 a3 19. Rxa3 Kh8 20. Ra4 f5 21. b3 Bxd5 22. exf5 Rxf5 23. Qxd5 Rf8 24. Bd3 Qc7 25. b5 Rbc8 26. Ra6 Rce8 27. b6 Qc3 28. Qe4 g6 29. Ra7 Be7 30. Bb5 d5 31. Qe2 Bc5 32. Bxe8 Rxf2 33. Rxf2 Qc1+ 34. Qf1 Bxf2+ 35. Kxf2 Qc5+ 36. Kg3 Qe3+ 37. Qf3 Qe1+ {[%emt 0:10:00]} 38. Kh3 {[%emt 0:10:37]} 1-0

[Event "51st La Roda Open 2025"]
[Site "La Roda"]
[Date "2025.04.19"]
[Round "7.6"]
[White "Valmana Canto, Jaime"]
[Black "Santos, Antonio P"]
[Result "0-1"]
[Annotator "RC"]
[ECO "B23"]
[WhiteElo "2385"]
[BlackElo "2152"]
[PlyCount "78"]
[EventDate "2025.04.15"]
[EventType "swiss"]
[EventCountry "ESP"]
[SourceTitle "playchess.com"]
[Source "ChessBase"]
[SourceQuality "1"]
[TimeControl "5400+30"]

1. e4 {[%emt 0:00:04]} c5 {[%emt 0:04:05]} 2. Nc3 {[%emt 0:00:53]} Nc6 {[%emt 0:00:11]} 3. Bb5 {[%emt 0:00:21]} Nd4 {[%emt 0:01:19]} 4. Nf3 {[%emt 0:00:21]} a6 {[%emt 0:00:21]} 5. Bd3 {[%emt 0:01:33]} Nc6 {[%emt 0:00:31]} 6. O-O {[%emt 0:01:46]} g6 {[%emt 0:03:26]} 7. a3 {[%emt 0:23:57]} Bg7 {[%emt 0:00:25]} 8. b4 {[%emt 0:00:06]} cxb4 {[%emt 0:19:42]} 9. axb4 {[%emt 0:00:03]} Nxb4 {[%emt 0:00:10]} 10. Bc4 {[%emt 0:00:05]} Nh6 {[%emt 0:13:53]} 11. d4 {[%emt 0:00:25]} O-O {[%emt 0:00:12]} 12. Bg5 {[%emt 0:01:03]} Qc7 {[%emt 0:11:49]} 13. Qe2 {[%emt 0:00:25]} d5 {[%emt 0:00:24]} 14. Nxd5 {[%emt 0:01:30]} Nxd5 {[%emt 0:00:07]} 15. Bxd5 {[%emt 0:00:03]} Ng4 {[%emt 0:11:42]} 16. h3 {[%emt 0:12:22]} h6 {[%emt 0:00:32]} 17. Bd2 {[%emt 0:00:02]} Nf6 {[%emt 0:00:10]} 18. Bb3 {[%emt 0:00:01]} Nd7 {[%emt 0:02:53]} 19. e5 {[%emt 0:00:52]} Nb8 {[%emt 0:02:06]} 20. Qe4 {[%emt 0:22:39]} Bf5 {[%emt 0:02:22]} 21. Qh4 {[%emt 0:00:02]} g5 {[%emt 0:10:52]} 22. Qh5 {[%emt 0:09:12]} e6 {[%emt 0:00:36]} 23. h4 {[%emt 0:00:00]} Bg6 {[%emt 0:02:07]} 24. Qg4 {[%emt 0:00:47]} Bf5 {[%emt 0:00:27]} 25. Qg3 {[%emt 0:00:01]} g4 {[%emt 0:00:10]} 26. Nh2 {[%emt 0:00:41]} h5 {[%emt 0:00:03]} 27. f3 {[%emt 0:00:01]} Nc6 {[%emt 0:01:43]} 28. c3 {[%emt 0:05:20]} gxf3 {[%emt 0:01:26]} 29. Rxf3 {[%emt 0:01:57]} Bg6 {[%emt 0:01:20]} 30. Kh1 {[%emt 0:04:33]} Qb6 {[%emt 0:03:32]} 31. Rxf7 {[%emt 0:09:40]} Rxf7 {[%emt 0:02:29]} 32. Bxe6 {[%emt 0:00:01]} Nxe5 {[%emt 0:00:18]} 33. d5 {[%emt 0:00:01]} Qb2 {[%emt 0:02:35]} 34. Rf1 {[%emt 0:00:01]} Qxd2 {[%emt 0:00:33]} 35. Nf3 {[%emt 0:00:01]} Qd3 {[%emt 0:00:52]} 36. Rg1 {[%emt 0:02:53]} Raf8 {[%emt 0:00:25]} 37. Qg5 {[%emt 0:01:54]} Nxf3 {[%emt 0:00:30]} 38. gxf3 {[%emt 0:00:01]} Kh7 {[%emt 0:01:28]} 39. Bxf7 {[%emt 0:03:33]} Rxf7 {[%emt 0:00:10]} 0-1

[Event "51st La Roda Open 2025"]
[Site "La Roda"]
[Date "2025.04.19"]
[Round "7.7"]
[White "Rodriguez Rivera, Pedro"]
[Black "Yordanov, Lachezar"]
[Result "1/2-1/2"]
[Annotator "RC"]
[ECO "A13"]
[WhiteElo "2127"]
[BlackElo "2364"]
[PlyCount "23"]
[EventDate "2025.04.15"]
[EventType "swiss"]
[EventCountry "ESP"]
[SourceTitle "playchess.com"]
[Source "ChessBase"]
[SourceQuality "1"]
[TimeControl "5400+30"]

1. Nf3 {[%emt 0:00:06]} d5 {[%emt 0:02:04]} 2. e3 {[%emt 0:00:21]} Nf6 {[%emt 0:00:28]} 3. c4 {[%emt 0:00:20]} e6 {[%emt 0:00:20]} 4. Nc3 {[%emt 0:00:22]} Be7 {[%emt 0:01:01]} 5. b3 {[%emt 0:00:37]} O-O {[%emt 0:00:59]} 6. Bb2 {[%emt 0:00:14]} c5 {[%emt 0:00:08]} 7. cxd5 {[%emt 0:00:28]} Nxd5 {[%emt 0:00:53]} 8. h4 {[%emt 0:00:16]} Nc6 {[%emt 0:01:29]} 9. Qb1 {[%emt 0:00:25]} Nf6 {[%emt 0:44:53]} 10. Ng5 {[%emt 0:04:43]} h6 {[%emt 0:43:15]} 11. Nce4 {[%emt 1:28:08]} Nxe4 {[%emt 0:00:30]} 12. Qxe4 {[%emt 0:00:30]} 1/2-1/2

[Event "51st La Roda Open 2025"]
[Site "La Roda"]
[Date "2025.04.19"]
[Round "7.8"]
[White "Aishwin Daniel"]
[Black "Buendia Pinar, Alvaro"]
[Result "1/2-1/2"]
[Annotator "RC"]
[ECO "B22"]
[WhiteElo "2236"]
[BlackElo "2322"]
[PlyCount "21"]
[EventDate "2025.04.15"]
[EventType "swiss"]
[EventCountry "ESP"]
[SourceTitle "playchess.com"]
[Source "ChessBase"]
[SourceQuality "1"]
[TimeControl "5400+30"]

1. e4 {[%emt 0:03:30]} c6 {[%emt 0:01:03]} 2. d4 {[%emt 0:00:14]} d5 {[%emt 0:00:40]} 3. exd5 {[%emt 0:00:24]} cxd5 {[%emt 0:00:44]} 4. c4 {[%emt 0:00:37]} Nf6 {[%emt 0:01:04]} 5. Nc3 {[%emt 0:00:25]} Nc6 {[%emt 0:00:04]} 6. Nf3 {[%emt 0:00:30]} e6 {[%emt 0:01:34]} 7. cxd5 {[%emt 0:01:36]} Nxd5 {[%emt 0:00:47]} 8. Bc4 {[%emt 0:04:52]} Nb6 {[%emt 0:00:09]} 9. Bb3 {[%emt 0:00:54]} Be7 {[%emt 0:00:27]} 10. O-O {[%emt 0:01:03]} O-O {[%emt 0:00:05]} 11. a3 {[%emt 0:04:42]} 1/2-1/2

[Event "51st La Roda Open 2025"]
[Site "La Roda"]
[Date "2025.04.19"]
[Round "7.9"]
[White "Centron Antuna, Daniel"]
[Black "Gomez Peco, David"]
[Result "1/2-1/2"]
[Annotator "RC"]
[ECO "C11"]
[WhiteElo "2299"]
[BlackElo "2085"]
[PlyCount "165"]
[EventDate "2025.04.15"]
[EventType "swiss"]
[EventCountry "ESP"]
[SourceTitle "playchess.com"]
[Source "ChessBase"]
[SourceQuality "1"]
[TimeControl "5400+30"]

1. e4 {[%emt 0:00:04]} e6 {[%emt 0:01:13]} 2. d4 {[%emt 0:00:08]} d5 {[%emt 0:00:12]} 3. Nc3 {[%emt 0:00:07]} Nf6 {[%emt 0:00:29]} 4. e5 {[%emt 0:00:07]} Nfd7 {[%emt 0:00:13]} 5. f4 {[%emt 0:00:06]} c5 {[%emt 0:00:28]} 6. Nf3 {[%emt 0:00:06]} Nc6 {[%emt 0:00:20]} 7. Be3 {[%emt 0:00:07]} Rb8 {[%emt 0:00:53]} 8. Qd2 {[%emt 0:03:08]} Qa5 {[%emt 0:01:07]} 9. Be2 {[%emt 0:07:30]} b5 {[%emt 0:02:09]} 10. O-O {[%emt 0:01:42]} b4 {[%emt 0:01:11]} 11. Nd1 {[%emt 0:00:20]} Ba6 {[%emt 0:00:39]} 12. f5 {[%emt 0:04:45]} exf5 {[%emt 0:20:44]} 13. Bxa6 {[%emt 0:02:00]} Qxa6 {[%emt 0:00:23]} 14. dxc5 {[%emt 0:00:31]} Bxc5 {[%emt 0:02:24]} 15. Qxd5 {[%emt 0:08:59]} Qb6 {[%emt 0:06:16]} 16. e6 {[%emt 0:08:53]} Bxe3+ {[%emt 0:27:51]} 17. Kh1 {[%emt 0:01:01]} fxe6 {[%emt 0:05:23]} 18. Qxe6+ {[%emt 0:00:15]} Ne7 {[%emt 0:00:11]} 19. Qxe3 {[%emt 0:00:10]} Qxe3 {[%emt 0:00:28]} 20. Nxe3 {[%emt 0:00:02]} O-O {[%emt 0:01:10]} 21. Rad1 {[%emt 0:08:17]} Nc5 {[%emt 0:16:46]} 22. Ne5 {[%emt 0:02:28]} Rbd8 {[%emt 0:05:30]} 23. Kg1 {[%emt 0:01:17]} g6 {[%emt 0:00:39]} 24. N3c4 {[%emt 0:02:17]} Ne4 {[%emt 0:01:17]} 25. Rfe1 {[%emt 0:05:02]} Rxd1 {[%emt 0:01:41]} 26. Rxd1 {[%emt 0:44:08]} Rc8 {[%emt 0:00:06]} 27. Rd7 {[%emt 0:00:00]} Nc6 {[%emt 0:00:25]} 28. Nd3 {[%emt 0:00:00]} Nf6 {[%emt 0:02:38]} 29. Rb7 {[%emt 0:00:00]} Nd5 {[%emt 0:00:03]} 30. b3 {[%emt 0:00:00]} Rb8 {[%emt 0:00:48]} 31. Rd7 {[%emt 0:00:00]} Rd8 {[%emt 0:00:07]} 32. Rb7 {[%emt 0:00:00]} Rb8 {[%emt 0:00:01]} 33. Rxb8+ {[%emt 0:00:00]} Nxb8 {[%emt 0:00:01]} 34. a3 {[%emt 0:00:00]} bxa3 {[%emt 0:00:59]} 35. Nxa3 {[%emt 0:00:00]} Nc3 {[%emt 0:01:38]} 36. Kf2 {[%emt 0:00:00]} Nc6 {[%emt 0:00:13]} 37. Ke3 {[%emt 0:00:00]} Kf7 {[%emt 0:00:13]} 38. Nc5 {[%emt 0:00:00]} Ke7 {[%emt 0:01:28]} 39. Kd2 {[%emt 0:00:00]} Nd5 {[%emt 0:01:43]} 40. c4 {[%emt 0:00:00]} Nf4 {[%emt 0:00:00]} 41. g3 {[%emt 0:00:00]} Ne6 {[%emt 0:00:00]} 42. Nxe6 {[%emt 0:00:00]} Kxe6 {[%emt 0:00:00]} 43. Nc2 {[%emt 0:00:00]} a5 {[%emt 0:00:00]} 44. Ke3 {[%emt 0:00:00]} Ke5 {[%emt 0:02:30]} 45. Ne1 {[%emt 0:00:00]} h6 {[%emt 0:00:00]} 46. h4 {[%emt 0:00:00]} g5 {[%emt 0:00:06]} 47. Nf3+ {[%emt 0:00:00]} Kf6 {[%emt 0:00:03]} 48. h5 {[%emt 0:00:00]} Kf7 {[%emt 0:01:02]} 49. Nd4 {[%emt 0:00:00]} Ne7 {[%emt 0:00:15]} 50. c5 {[%emt 0:02:02]} Kf6 {[%emt 0:00:29]} 51. Nf3 {[%emt 0:03:42]} Nc6 {[%emt 0:00:00]} 52. Nd4 {[%emt 0:04:09]} Ne7 {[%emt 0:00:02]} 53. Nb5 {[%emt 0:00:48]} Ke5 {[%emt 0:00:44]} 54. Nd6 {[%emt 0:00:12]} Kd5 {[%emt 0:00:50]} 55. Nf7 {[%emt 0:00:55]} Kxc5 {[%emt 0:00:58]} 56. Nxh6 {[%emt 0:00:02]} Kb4 {[%emt 0:00:12]} 57. Nf7 {[%emt 0:01:42]} Kxb3 {[%emt 0:00:20]} 58. Nxg5 {[%emt 0:00:45]} a4 {[%emt 0:00:07]} 59. Nf3 {[%emt 0:00:31]} a3 {[%emt 0:00:32]} 60. Nd4+ {[%emt 0:01:08]} Kb2 {[%emt 0:00:42]} 61. Kd2 {[%emt 0:00:22]} a2 {[%emt 0:00:30]} 62. Nc2 {[%emt 0:00:08]} Ng8 {[%emt 0:00:38]} 63. Kd3 {[%emt 0:00:25]} Nh6 {[%emt 0:00:34]} 64. Kd2 {[%emt 0:00:16]} Ng4 {[%emt 0:00:11]} 65. Kd3 {[%emt 0:00:36]} Kb1 {[%emt 0:01:26]} 66. Na3+ {[%emt 0:00:53]} Kc1 {[%emt 0:01:19]} 67. Nc2 {[%emt 0:00:19]} Kb2 {[%emt 0:00:00]} 68. Kd2 {[%emt 0:00:37]} Ne3 {[%emt 0:00:00]} 69. h6 {[%emt 0:00:23]} Nxc2 {[%emt 0:00:18]} 70. h7 {[%emt 0:00:01]} a1=Q {[%emt 0:00:40]} 71. h8=Q+ {[%emt 0:02:34]} Ka2 {[%emt 0:00:37]} 72. Qa8+ {[%emt 0:00:00]} Na3 {[%emt 0:00:35]} 73. Qd5+ {[%emt 0:00:00]} Kb1 {[%emt 0:00:33]} 74. Qxf5+ {[%emt 0:00:00]} Ka2 {[%emt 0:00:20]} 75. Qf7+ {[%emt 0:00:00]} Kb1 {[%emt 0:00:13]} 76. Qf5+ {[%emt 0:01:12]} Ka2 {[%emt 0:00:06]} 77. Qd5+ {[%emt 0:00:27]} Kb1 {[%emt 0:00:36]} 78. Qd3+ {[%emt 0:00:41]} Ka2 {[%emt 0:00:17]} 79. g4 {[%emt 0:00:31]} Qe5 {[%emt 0:00:52]} 80. Kd1 {[%emt 0:00:45]} Nb5 {[%emt 0:00:27]} 81. Qd2+ {[%emt 0:00:24]} Kb3 {[%emt 0:00:26]} 82. Qc2+ {[%emt 0:00:24]} Kb4 {[%emt 0:00:24]} 83. Qb1+ {[%emt 0:00:24]} 1/2-1/2

[Event "51st La Roda Open 2025"]
[Site "La Roda"]
[Date "2025.04.19"]
[Round "7.10"]
[White "Amoes, Francisco"]
[Black "Gonzalez Castillo, Jose Javier"]
[Result "1/2-1/2"]
[Annotator "RC"]
[ECO "B12"]
[WhiteElo "1875"]
[BlackElo "2297"]
[PlyCount "86"]
[EventDate "2025.04.15"]
[EventType "swiss"]
[EventCountry "ESP"]
[SourceTitle "playchess.com"]
[Source "ChessBase"]
[SourceQuality "1"]
[TimeControl "5400+30"]

1. e4 {[%emt 0:14:22]} c6 {[%emt 0:00:35]} 2. d4 {[%emt 0:00:09]} d5 {[%emt 0:00:05]} 3. e5 {[%emt 0:00:11]} Bf5 {[%emt 0:00:06]} 4. h4 {[%emt 0:00:20]} h5 {[%emt 0:00:06]} 5. Bd3 {[%emt 0:01:28]} Bxd3 {[%emt 0:00:14]} 6. Qxd3 {[%emt 0:00:27]} e6 {[%emt 0:00:07]} 7. Bg5 {[%emt 0:03:22]} Qa5+ {[%emt 0:06:30]} 8. Nd2 {[%emt 0:02:39]} Ne7 {[%emt 0:02:33]} 9. Ne2 {[%emt 0:03:59]} Nf5 {[%emt 0:00:40]} 10. Ng3 {[%emt 0:07:03]} Nxg3 {[%emt 0:01:48]} 11. Qxg3 {[%emt 0:00:21]} Qa6 {[%emt 0:01:20]} 12. c4 {[%emt 0:05:01]} Qb6 {[%emt 0:22:01]} 13. Qf4 {[%emt 0:45:45]} Bb4 {[%emt 0:01:25]} 14. c5 {[%emt 0:02:13]} Qa6 {[%emt 0:04:42]} 15. Rh3 {[%emt 0:00:16]} b6 {[%emt 0:01:29]} 16. Rf3 {[%emt 0:02:33]} Rf8 {[%emt 0:00:05]} 17. cxb6 {[%emt 0:03:34]} axb6 {[%emt 0:00:21]} 18. Rb3 {[%emt 0:00:46]} Qa5 {[%emt 0:06:37]} 19. Qf3 {[%emt 0:01:53]} Nd7 {[%emt 0:01:01]} 20. a3 {[%emt 0:00:18]} Bxd2+ {[%emt 0:03:10]} 21. Bxd2 {[%emt 0:00:01]} Qa4 {[%emt 0:00:01]} 22. Rb4 {[%emt 0:01:11]} Qa6 {[%emt 0:00:05]} 23. Qxh5 {[%emt 0:00:58]} c5 {[%emt 0:00:01]} 24. dxc5 {[%emt 0:00:20]} Nxc5 {[%emt 0:00:13]} 25. O-O-O {[%emt 0:03:14]} g6 {[%emt 0:07:59]} 26. Qf3 {[%emt 0:00:20]} Nd3+ {[%emt 0:00:18]} 27. Kb1 {[%emt 0:00:05]} Nxe5 {[%emt 0:00:12]} 28. Qf6 {[%emt 0:00:46]} Qd3+ {[%emt 0:00:45]} 29. Ka1 {[%emt 0:00:16]} Nc4 {[%emt 0:00:54]} 30. Bg5 {[%emt 0:01:03]} Rxa3+ {[%emt 0:02:21]} 31. bxa3 {[%emt 0:00:12]} Qxa3+ {[%emt 0:00:05]} 32. Kb1 {[%emt 0:00:45]} Qxb4+ {[%emt 0:00:01]} 33. Kc2 {[%emt 0:00:29]} Qa4+ {[%emt 0:09:34]} 34. Kc1 {[%emt 0:00:17]} Qa3+ {[%emt 0:00:01]} 35. Kc2 {[%emt 0:00:15]} Kd7 {[%emt 0:09:41]} 36. Ra1 {[%emt 0:00:25]} Qc5 {[%emt 0:00:01]} 37. Ra7+ {[%emt 0:00:33]} Kc8 {[%emt 0:01:59]} 38. Kd1 {[%emt 0:00:37]} e5 {[%emt 0:05:26]} 39. Ra8+ {[%emt 0:00:24]} Kb7 {[%emt 0:00:20]} 40. Rxf8 {[%emt 0:00:29]} Qxf8 {[%emt 0:00:25]} 41. g4 {[%emt 0:00:16]} Qc5 {[%emt 0:02:09]} 42. Qe7+ {[%emt 0:00:54]} Qxe7 {[%emt 0:00:21]} 43. Bxe7 {[%emt 0:00:01]} e4 {[%emt 0:00:14]} 1/2-1/2